bitfinex/quotes_BTCUSD_20251114
["timestamp","ask_amount","ask_price","bid_price","bid_amount"]
[1763131311470,0.01,96350.0,96336.0,0.30613594]
[1763131311690,0.00253105,96368.0,96341.0,0.334095]
[1763131311893,0.21006894,96368.0,96341.0,0.187122]
[1763131312120,0.21006894,96368.0,96336.0,0.00045305]
[1763131312121,0.10479654,96351.0,96336.0,0.00045305]
[1763131312318,0.10479654,96351.0,96346.0,0.12804292]
[1763131312536,0.0478,96350.0,96346.0,0.12804292]
[1763131312745,0.09005,96356.0,96346.0,0.12804292]
[1763131312921,0.01,96340.0,96336.0,0.12949597]
[1763131313104,0.2100699,96368.0,96341.0,0.108735]
[1763131313105,0.01,96350.0,96341.0,0.108735]
[1763131313314,0.01,96350.0,96342.0,0.335474]
[1763131313591,0.01,96350.0,96342.0,0.651469]
[1763131313858,0.10479654,96349.0,96343.0,0.02197038]
[1763131314249,0.00253105,96368.0,96345.0,0.09156669]
[1763131314497,0.20754311,96366.0,96362.0,0.07323681]
[1763131314781,0.15140678,96362.0,96360.0,0.07323681]
[1763131315031,0.09005,96361.0,96360.0,0.07323681]
[1763131315273,0.29760284,96361.0,96360.0,0.0219641]
[1763131315745,0.20755284,96361.0,96360.0,0.09518724]
[1763131316294,0.20755284,96361.0,96360.0,0.0219641]
[1763131317297,0.20755284,96361.0,96360.0,0.0220041]
[1763131317901,0.20755284,96361.0,96360.0,0.09521917]
[1763131318103,0.02037667,96370.0,96360.0,0.0220041]
[1763131318308,0.20755073,96362.0,96361.0,0.0219641]
[1763131318488,0.20755073,96362.0,96361.0,0.0169641]
[1763131319767,0.001,96370.0,96362.0,0.04729]
[1763131319962,0.001,96370.0,96368.0,0.07316729]
[1763131320169,0.001,96370.0,96365.0,0.323]
[1763131320170,0.012,96370.0,96367.0,0.323]
[1763131320376,0.012,96370.0,96358.0,0.09156669]
[1763131320549,0.012,96370.0,96349.0,0.04729]
[1763131320550,0.001,96370.0,96361.0,0.614184]
[1763131320745,0.10479654,96392.0,96361.0,0.614184]
[1763131320746,0.01,96380.0,96364.0,0.323]
[1763131320954,0.1151689,96410.0,96379.0,0.07313515]
[1763131321194,0.02912055,96409.0,96381.0,0.591652]
[1763131321370,0.10479654,96407.0,96403.0,0.03655993]
[1763131321716,0.20746027,96404.0,96402.0,0.07313515]
[1763131321858,0.20746242,96403.0,96402.0,0.07313515]
[1763131322044,0.20746887,96400.0,96399.0,0.07313515]
[1763131322246,0.20746887,96400.0,96391.0,0.07313515]
[1763131322247,0.20748609,96392.0,96391.0,0.07313515]
[1763131322467,0.20748609,96392.0,96390.0,0.07313515]
[1763131322670,0.20751193,96380.0,96377.0,0.07313515]
[1763131322960,0.20752054,96376.0,96375.0,0.07313515]
[1763131323315,0.10479654,96377.0,96362.0,0.09156669]
[1763131323533,0.10479654,96382.0,96369.0,0.09156669]
[1763131323861,0.01,96370.0,96369.0,0.09156669]
[1763131324200,0.01,96370.0,96360.0,0.00104]
[1763131324201,0.01,96370.0,96360.0,0.09260669]
[1763131324427,0.002,96376.0,96361.0,0.09156669]
[1763131324649,0.00013589,96382.0,96366.0,0.09156669]
[1763131324650,0.10479654,96375.0,96366.0,0.09156669]
[1763131324879,0.31231923,96375.0,96374.0,0.09156669]
[1763131325049,0.20752915,96372.0,96370.0,0.09156669]
[1763131325259,0.20752915,96372.0,96369.0,0.09156669]
[1763131325395,0.20753131,96371.0,96369.0,0.09156669]
[1763131325989,0.20752685,96374.0,96370.0,0.09156669]
[1763131326229,0.20753192,96371.0,96369.0,0.09156669]
[1763131326453,0.20753192,96371.0,96370.0,0.09156669]
[1763131326671,0.20753192,96371.0,96360.0,0.00104]
[1763131326672,0.20753561,96369.0,96368.0,0.09156669]
[1763131326874,0.001,96370.0,96360.0,0.00104]
[1763131326875,0.01,96370.0,96360.0,0.50452552]
[1763131327152,0.01,96370.0,96361.0,0.656666]
[1763131327326,0.001,96371.0,96361.0,0.5]
[1763131327532,0.10479654,96369.0,96360.0,0.50452552]
[1763131327734,0.20755237,96362.0,96360.0,0.00104]
[1763131327904,0.10479654,96369.0,96360.0,0.00104]
[1763131328101,0.2075528,96362.0,96360.0,0.00104]
[1763131328526,0.30292777,96368.0,96327.0,0.12804292]
[1763131328527,0.20758731,96345.0,96344.0,0.07316272]
[1763131328774,0.20758731,96345.0,96310.0,0.54984552]
[1763131328775,0.20759162,96343.0,96341.0,0.07316272]
[1763131328987,0.20760239,96338.0,96337.0,0.07316272]
[1763131329201,0.20760239,96338.0,96300.0,4e-05]
[1763131329202,0.00900841,96320.0,96311.0,0.12804292]
[1763131329411,0.00900841,96320.0,96300.0,4e-05]
[1763131329412,0.20768216,96301.0,96300.0,4e-05]
[1763131329644,0.2077274,96301.0,96300.0,4e-05]
[1763131329853,0.20772961,96279.0,96250.0,0.0004]
[1763131330072,0.01038637,96280.0,96250.0,0.0004]
[1763131330073,0.01,96260.0,96250.0,0.0004]
[1763131330304,0.0244,96267.0,96250.0,0.0004]
[1763131330526,0.10479654,96251.0,96250.0,0.0004]
[1763131330750,0.10479654,96266.0,96250.0,0.0004]
[1763131330963,0.01,96260.0,96250.0,0.0004]
[1763131331182,0.01004521,96260.0,96250.0,0.0004]
[1763131331432,0.01204521,96260.0,96250.0,0.0004]
[1763131331744,0.10479654,96258.0,96250.0,0.0004]
[1763131332338,0.20778978,96252.0,96250.0,0.0004]
[1763131332561,0.10479654,96258.0,96250.0,0.0004]
[1763131332738,0.10479654,96255.0,96250.0,0.0004]
[1763131332945,0.01104521,96260.0,96250.0,0.0004]
[1763131333143,0.10479654,96257.0,96250.0,0.0004]
[1763131333353,0.01004521,96260.0,96250.0,0.0004]
[1763131333518,0.01004521,96260.0,96250.0,0.00044]
[1763131333783,0.01004521,96260.0,96221.0,0.05188]
[1763131333784,0.10479654,96257.0,96221.0,0.05188]
[1763131333988,0.01,96230.0,96223.0,0.543538]
[1763131334184,0.01,96240.0,96230.0,0.552669]
[1763131334392,0.01,96250.0,96233.0,0.323]
[1763131334587,0.10479654,96257.0,96231.0,1.391366]
[1763131334588,0.01,96240.0,96231.0,1.391366]
[1763131334982,0.01,96240.0,96233.0,1.55499791]
[1763131335192,0.01,96240.0,96235.0,1.522211]
[1763131335437,0.10479654,96239.0,96235.0,1.315577]
[1763131335638,0.10479654,96239.0,96233.0,0.00045305]
[1763131335639,0.20782675,96234.0,96233.0,0.00045305]
[1763131335819,0.09163,96256.0,96233.0,0.00045305]
[1763131336049,0.20781404,96240.0,96233.0,0.00045305]
[1763131336277,0.20782029,96237.0,96233.0,0.00045305]
[1763131336498,0.20782535,96235.0,96233.0,0.00045305]
[1763131336721,0.10479654,96242.0,96233.0,0.00045305]
[1763131336957,0.20782675,96234.0,96233.0,0.00045305]
[1763131337173,0.00900841,96240.0,96233.0,0.00045305]
[1763131337383,0.20782221,96237.0,96233.0,0.00045305]
[1763131337643,0.00900841,96240.0,96233.0,0.00045305]
[1763131337644,0.001,96235.0,96233.0,0.00045305]
[1763131338055,0.10479654,96242.0,96233.0,0.00045305]
[1763131338288,0.002,96234.0,96233.0,0.00045305]
[1763131338811,0.002,96234.0,96233.0,0.00207654]
[1763131339049,0.002,96234.0,96233.0,0.61841254]
[1763131339304,0.002,96234.0,96233.0,0.94141254]
[1763131339509,0.10479654,96279.0,96247.0,0.323]
[1763131339732,0.01,96260.0,96250.0,0.358765]
[1763131339941,0.01,96260.0,96251.0,0.020779]
[1763131340194,0.01,96260.0,96249.0,0.323]
[1763131340396,0.10479654,96259.0,96250.0,0.132996]
[1763131340607,0.01,96260.0,96250.0,0.14755459]
[1763131340810,0.01,96270.0,96259.0,0.305323]
[1763131341043,0.10479654,96263.0,96260.0,0.36922832]
[1763131341267,0.10479654,96278.0,96254.0,0.183253]
[1763131341541,0.10479654,96278.0,96253.0,0.36922832]
[1763131341542,0.2077832,96255.0,96253.0,0.36922832]
[1763131341736,0.001,96259.0,96220.0,0.04941]
[1763131341952,0.001,96259.0,96208.0,0.09444]
[1763131341953,0.20782675,96234.0,96200.0,4e-05]
[1763131342115,0.20782675,96234.0,96200.0,0.36926832]
[1763131342325,0.20782675,96234.0,96200.0,4e-05]
[1763131342523,0.20782243,96236.0,96200.0,0.02083002]
[1763131342703,0.06380726,96260.0,96220.0,0.36922832]
[1763131342704,0.01038853,96260.0,96220.0,0.36922832]
[1763131342902,0.10479654,96243.0,96230.0,0.36922832]
[1763131343129,0.01,96240.0,96230.0,0.36922832]
[1763131343329,0.01,96240.0,96225.0,0.323]
[1763131343533,0.01,96240.0,96234.0,0.248361]
[1763131343736,0.19676654,96278.0,96234.0,0.248361]
[1763131343737,0.001,96236.0,96235.0,1.49586288]
[1763131343936,0.002,96259.0,96242.0,0.845398]
[1763131344139,0.002,96259.0,96250.0,0.10201]
[1763131344457,0.01,96260.0,96250.0,0.60201]
[1763131344663,0.10479654,96278.0,96250.0,0.10201]
[1763131344868,0.01,96270.0,96250.0,0.10201]
[1763131345370,0.01,96270.0,96260.0,0.36922832]
[1763131345576,0.01,96280.0,96261.0,0.323]
[1763131345778,0.20777042,96261.0,96250.0,0.36922832]
[1763131345992,0.207784,96254.0,96241.0,0.323]
[1763131346216,0.00162,96261.0,96230.0,0.38918832]
[1763131346425,0.01939694,96260.0,96223.0,0.5]
[1763131346658,0.01939694,96260.0,96210.0,0.36922832]
[1763131346659,0.23287675,96234.0,96210.0,0.36922832]
[1763131346864,0.23287675,96234.0,96200.0,0.36926832]
[1763131347071,0.23287675,96234.0,96233.0,3.05e-06]
[1763131347274,0.20785051,96223.0,96200.0,4e-05]
[1763131347452,0.20785051,96223.0,96222.0,0.60045414]
[1763131348000,0.20785051,96223.0,96222.0,0.57469133]
[1763131348529,0.08986,96231.0,96222.0,0.57469133]
[1763131348734,0.20784819,96225.0,96222.0,0.57469133]
[1763131348936,0.08986,96245.0,96222.0,0.57469133]
[1763131349290,0.01,96230.0,96222.0,0.51669133]
[1763131349509,0.004,96223.0,96222.0,0.51669133]
[1763131349714,0.002,96223.0,96222.0,0.51669133]
[1763131349859,0.20781211,96241.0,96222.0,0.51669133]
[1763131350064,0.002,96234.0,96222.0,0.51669133]
[1763131350240,0.20785051,96223.0,96222.0,0.51669133]
[1763131350662,0.20885051,96223.0,96222.0,0.51669133]
[1763131350885,0.20785051,96223.0,96222.0,0.51669133]
[1763131351576,0.20785051,96223.0,96222.0,0.11669133]
[1763131352856,0.20885051,96223.0,96222.0,0.11669133]
[1763131353084,0.20785051,96223.0,96222.0,0.11669133]
[1763131353431,0.21085051,96223.0,96222.0,0.11669133]
[1763131353631,0.20789804,96201.0,96200.0,4e-05]
[1763131353832,0.10479654,96202.0,96200.0,0.00017613]
[1763131354262,0.31269316,96202.0,96200.0,0.00017613]
[1763131355652,0.31269316,96202.0,96170.0,0.0004]
[1763131355653,0.020395,96200.0,96170.0,0.0004]
[1763131355990,0.00980035,96180.0,96170.0,0.00053618]
[1763131356140,0.00980035,96180.0,96170.0,0.5055275]
[1763131356341,0.10479654,96171.0,96170.0,0.00053618]
[1763131356731,0.10479654,96171.0,96170.0,0.00386652]
[1763131356934,0.00980035,96160.0,96151.0,0.174156]
[1763131357152,0.00980035,96160.0,96152.0,0.16567155]
[1763131357356,0.10479654,96171.0,96151.0,0.50013644]
[1763131357357,0.10479654,96156.0,96151.0,0.00013644]
[1763131357560,0.00980035,96160.0,96152.0,0.170597]
[1763131357822,0.00980035,96170.0,96156.0,0.20799519]
[1763131357996,0.00980035,96170.0,96161.0,0.798037]
[1763131358225,0.00980035,96170.0,96160.0,0.71297755]
[1763131358226,0.001,96171.0,96169.0,0.20796523]
[1763131358359,0.001,96171.0,96162.0,1.246819]
[1763131358553,0.001,96171.0,96169.0,0.20796544]
[1763131358760,0.00980035,96190.0,96170.0,0.93789075]
[1763131359054,0.00980035,96190.0,96181.0,0.624236]
[1763131359332,0.00980035,96190.0,96180.0,0.50499132]
[1763131359333,0.00980035,96200.0,96183.0,0.338879]
[1763131359490,0.10479654,96196.0,96185.0,0.402319]
[1763131359695,0.00980035,96190.0,96170.0,0.50499132]
[1763131359898,0.00980035,96190.0,96174.0,0.47223041]
[1763131360137,0.00980035,96200.0,96181.0,0.614295]
[1763131360343,0.00980035,96220.0,96190.0,0.51538741]
[1763131360567,0.00980035,96220.0,96182.0,0.09718]
[1763131360568,0.00980035,96210.0,96182.0,0.09718]
[1763131360755,0.00980035,96200.0,96181.0,0.323]
[1763131360957,0.01022149,96199.0,96184.0,0.114069]
[1763131361163,0.01022149,96199.0,96181.0,0.115639]
[1763131361341,0.20790541,96198.0,96182.0,0.52079391]
[1763131361508,0.01039284,96220.0,96183.0,0.630642]
[1763131361724,0.01039284,96220.0,96182.0,0.02079391]
[1763131361725,0.00980035,96200.0,96191.0,0.658011]
[1763131361952,0.00980035,96200.0,96180.0,0.01039717]
[1763131361953,0.10479654,96199.0,96192.0,0.5]
[1763131362165,0.00980035,96190.0,96183.0,0.2342]
[1763131362383,0.01022149,96208.0,96184.0,0.02079347]
[1763131362594,0.10479654,96199.0,96190.0,0.50499132]
[1763131362823,0.00980035,96200.0,96191.0,0.62601796]
[1763131363049,0.10479654,96198.0,96175.0,0.198424]
[1763131363260,0.00980035,96180.0,96176.0,0.51548224]
[1763131363477,0.00980035,96190.0,96177.0,0.02079499]
[1763131363697,0.00980035,96190.0,96181.0,0.218556]
[1763131363915,0.00980035,96190.0,96183.0,0.140267]
[1763131364136,0.00980035,96190.0,96184.0,0.298404]
[1763131364422,0.00980035,96190.0,96177.0,0.09718]
[1763131364640,0.00980035,96190.0,96181.0,0.100437]
[1763131364858,0.00980035,96210.0,96191.0,1.458725]
[1763131365068,0.20786001,96219.0,96200.0,0.50499132]
[1763131365311,0.10479654,96205.0,96190.0,0.50499132]
[1763131365777,0.00980035,96200.0,96190.0,0.50499132]
[1763131365984,0.001,96210.0,96191.0,0.62181]
[1763131366197,0.10479654,96205.0,96200.0,0.50499132]
[1763131366611,0.001,96205.0,96200.0,0.50499132]
[1763131366865,0.001,96205.0,96204.0,0.252364]
[1763131367367,0.001,96205.0,96204.0,0.20789156]
[1763131367529,0.001,96205.0,96203.0,0.20789214]
[1763131367741,0.001,96205.0,96204.0,1.354611]
[1763131368957,0.00154728,96211.0,96209.0,0.20788075]
[1763131369178,0.00154728,96211.0,96210.0,2.034061]
[1763131369645,0.00154728,96211.0,96210.0,1.936881]
[1763131370087,0.00154728,96211.0,96210.0,1.98029974]
[1763131370515,0.00154728,96211.0,96210.0,1.98329974]
[1763131370996,0.027962,96279.0,96210.0,1.98329974]
[1763131370997,0.20771883,96284.0,96252.0,0.50499132]
[1763131371212,0.11459689,96280.0,96263.0,0.71275397]
[1763131371424,0.00980035,96280.0,96264.0,0.09718]
[1763131371619,0.00045302,96284.0,96283.0,0.20772098]
[1763131371764,0.00045302,96284.0,96283.0,1.054534]
[1763131373305,0.00045302,96284.0,96283.0,1.151714]
[1763131373530,0.00045302,96284.0,96283.0,1.054534]
[1763131373907,0.00045302,96284.0,96283.0,1.09795274]
[1763131375610,0.01022149,96334.0,96310.0,0.01038313]
[1763131375815,0.00980035,96330.0,96312.0,0.323]
[1763131376028,0.10479654,96333.0,96311.0,0.09718]
[1763131376029,0.00013593,96334.0,96321.0,0.718616]
[1763131376226,0.00013593,96334.0,96333.0,0.53061317]
[1763131376426,0.00013593,96334.0,96333.0,1.18145417]
[1763131376869,0.00213593,96334.0,96333.0,1.18145417]
[1763131377091,0.00113593,96334.0,96333.0,1.22487291]
[1763131377233,0.00446175,96334.0,96333.0,1.22487291]
[1763131378056,0.00346175,96334.0,96333.0,1.22487291]
[1763131378695,0.00346175,96334.0,96333.0,0.973841]
[1763131379074,0.00346175,96334.0,96333.0,0.975841]
[1763131380086,0.00346175,96334.0,96333.0,0.459731]
[1763131380291,0.00346175,96334.0,96333.0,0.329651]
[1763131380487,0.00346175,96334.0,96333.0,0.001]
[1763131381175,0.00346175,96334.0,96286.0,0.07605314]
[1763131381176,0.20771119,96288.0,96286.0,0.07605314]
[1763131381702,0.20771119,96288.0,96240.0,0.01039068]
[1763131381703,0.00980035,96250.0,96230.0,0.50331032]
[1763131381853,0.00980035,96250.0,96220.0,0.05482284]
[1763131381854,0.2181823,96250.0,96220.0,0.50331032]
[1763131382038,0.04722,96269.0,96230.0,0.50331032]
[1763131382244,0.01038853,96260.0,96232.0,0.237148]
[1763131382451,0.00980035,96250.0,96231.0,0.575396]
[1763131382790,0.00980035,96250.0,96231.0,0.424094]
[1763131382994,0.00980035,96250.0,96233.0,0.33132813]
[1763131383222,0.00980035,96250.0,96231.0,0.5]
[1763131383223,0.001,96250.0,96231.0,0.5]
[1763131383431,0.001,96250.0,96211.0,0.314377]
[1763131383432,0.00980035,96230.0,96211.0,0.314377]
[1763131383592,0.21818241,96250.0,96211.0,0.314377]
[1763131383593,0.00980035,96240.0,96223.0,0.323]
[1763131383801,0.00980035,96240.0,96220.0,0.71116581]
[1763131383802,0.00980035,96240.0,96224.0,0.174798]
[1763131384002,0.10479654,96232.0,96220.0,0.50331032]
[1763131384336,0.10479654,96232.0,96213.0,0.09048]
[1763131384337,0.00980035,96230.0,96213.0,0.323]
[1763131384494,0.00980035,96230.0,96201.0,0.20789799]
[1763131384495,0.00980035,96240.0,96237.0,0.20781818]
[1763131384713,0.002,96250.0,96248.0,0.2077945]
[1763131384714,0.001,96250.0,96248.0,0.2077945]
[1763131384890,0.00013572,96250.0,96249.0,0.02077943]
[1763131385093,0.00113572,96250.0,96249.0,0.22857379]
[1763131385304,0.00113572,96250.0,96249.0,0.73571036]
[1763131385503,0.00213572,96250.0,96249.0,0.73571036]
[1763131385702,0.00013572,96250.0,96249.0,0.73571036]
[1763131385904,0.00113572,96250.0,96249.0,0.73571036]
[1763131386136,0.00113572,96250.0,96249.0,0.323]
[1763131386137,0.00213572,96250.0,96249.0,0.323]
[1763131386341,0.00993607,96250.0,96232.0,0.20783107]
[1763131386560,0.00013572,96250.0,96248.0,0.323]
[1763131386745,0.00013572,96250.0,96249.0,0.57921643]
[1763131387139,0.00013572,96250.0,96249.0,0.558437]
[1763131388305,0.00013572,96250.0,96249.0,0.649917]
[1763131388551,0.00113572,96250.0,96249.0,0.67321574]
[1763131388695,0.01038098,96330.0,96297.0,0.20768898]
[1763131388898,0.00980035,96310.0,96298.0,0.5]
[1763131389137,0.00980035,96310.0,96295.0,0.25618409]
[1763131389138,0.00980035,96310.0,96297.0,0.113633]
[1763131389457,0.00013613,96316.0,96295.0,0.04849]
[1763131389458,0.00013613,96316.0,96299.0,0.09854]
[1763131389613,0.00013613,96316.0,96315.0,0.132766]
[1763131389800,0.027962,96377.0,96315.0,0.955766]
[1763131390023,0.027962,96377.0,96307.0,0.20766922]
[1763131390024,0.00980035,96360.0,96333.0,0.323]
[1763131390181,0.00980035,96350.0,96337.0,0.220343]
[1763131390380,0.00980035,96350.0,96338.0,0.323]
[1763131390627,0.10493262,96372.0,96338.0,0.323]
[1763131390628,0.00980035,96360.0,96344.0,0.323]
[1763131390830,0.00980035,96370.0,96348.0,0.323]
[1763131391061,0.00980035,96370.0,96346.0,0.45398575]
[1763131391062,0.00980035,96370.0,96352.0,0.323]
[1763131391265,0.00980035,96370.0,96353.0,0.07036]
[1763131391464,0.01035757,96372.0,96343.0,0.09854]
[1763131391465,0.00980035,96360.0,96349.0,0.07036]
[1763131391901,0.00980035,96370.0,96357.0,0.20755984]
[1763131392111,0.00980035,96370.0,96350.0,0.290518]
[1763131392315,0.00013608,96372.0,96369.0,0.04849]
[1763131392464,0.00013608,96372.0,96371.0,0.20753131]
[1763131392662,0.00013608,96372.0,96371.0,0.79374831]
[1763131392866,0.00013608,96372.0,96371.0,0.68605531]
[1763131393068,0.00013608,96372.0,96371.0,0.20753131]
[1763131393415,0.00013608,96372.0,96371.0,0.548643]
[1763131393609,0.00013608,96372.0,96371.0,0.643516]
[1763131393831,0.00013608,96372.0,96371.0,0.466516]
[1763131394819,0.00013608,96372.0,96371.0,0.536836]
[1763131395802,0.00013608,96372.0,96371.0,0.58125474]
[1763131396209,0.01022149,96439.0,96371.0,0.58125474]
[1763131396210,0.0002,96440.0,96420.0,0.20742395]
[1763131396383,0.00980035,96430.0,96420.0,0.45398575]
[1763131396584,0.00980035,96430.0,96411.0,0.582911]
[1763131396585,0.00980035,96420.0,96411.0,0.54849]
[1763131396792,0.31223585,96414.0,96391.0,0.154074]
[1763131396989,0.01022149,96413.0,96391.0,0.126439]
[1763131397243,0.03036804,96450.0,96391.0,0.611934]
[1763131397244,0.21724776,96410.0,96391.0,0.611934]
[1763131397414,0.00980035,96410.0,96392.0,0.09854]
[1763131397615,0.01037129,96420.0,96393.0,0.569557]
[1763131397616,0.00980035,96420.0,96393.0,0.569557]
[1763131397838,0.00980035,96410.0,96392.0,0.09854]
[1763131398026,0.00980035,96410.0,96392.0,0.59854]
[1763131398234,0.00980035,96410.0,96394.0,0.107796]
[1763131398544,0.00497207,96395.0,96394.0,0.031509]
[1763131398748,0.20748179,96394.0,96391.0,0.5]
[1763131398912,0.11501803,96409.0,96380.0,0.02472]
[1763131398913,0.00980035,96390.0,96380.0,0.02472]
[1763131399111,0.10479654,96409.0,96380.0,0.47870575]
[1763131399112,0.00980035,96400.0,96380.0,0.47870575]
[1763131399295,0.10479654,96394.0,96380.0,0.97870575]
[1763131399495,0.01037344,96400.0,96370.0,0.68703175]
[1763131399738,0.20749255,96389.0,96370.0,0.45398575]
[1763131399879,0.00980035,96390.0,96371.0,0.617035]
[1763131400079,0.12208,96389.0,96371.0,0.617035]
[1763131400288,0.12208,96389.0,96330.0,0.00999999]
[1763131400289,0.00980035,96360.0,96331.0,0.20761748]
[1763131400526,0.00980035,96350.0,96331.0,0.482793]
[1763131400729,0.02776,96389.0,96359.0,0.245888]
[1763131400730,0.00980035,96370.0,96359.0,0.245888]
[1763131400887,0.00980035,96380.0,96361.0,0.367241]
[1763131401103,0.02002184,96380.0,96370.0,0.45398575]
[1763131401311,0.00980035,96380.0,96370.0,0.45398575]
[1763131401514,0.20752725,96373.0,96370.0,0.45398575]
[1763131401711,0.01022149,96372.0,96341.0,0.09854]
[1763131402020,0.01037559,96380.0,96363.0,0.502963]
[1763131402021,0.00980035,96380.0,96363.0,0.502963]
[1763131402211,0.00980035,96380.0,96370.0,0.45398575]
[1763131402412,0.20746865,96401.0,96380.0,0.20751154]
[1763131402611,0.01022149,96399.0,96389.0,0.20749255]
[1763131402874,0.10479654,96408.0,96382.0,1.077561]
[1763131403196,0.10479654,96408.0,96372.0,0.09854]
[1763131403197,0.10479654,96393.0,96372.0,0.09854]
[1763131403316,0.01022149,96392.0,96372.0,0.09854]
[1763131403512,0.01022149,96392.0,96370.0,0.45398575]
[1763131403513,0.01180035,96380.0,96370.0,0.45398575]
[1763131403727,0.01180035,96380.0,96360.0,0.45398575]
[1763131403728,0.002,96380.0,96360.0,0.45398575]
[1763131403930,0.01180035,96380.0,96361.0,0.679988]
[1763131404133,0.001,96373.0,96361.0,0.679988]
[1763131404345,0.01180035,96380.0,96363.0,0.20754696]
[1763131404548,0.01180035,96380.0,96364.0,0.02075463]
[1763131404760,0.01280035,96380.0,96367.0,0.184742]
[1763131404959,0.01280035,96380.0,96366.0,0.323]
[1763131404960,0.01180035,96380.0,96370.0,0.45398575]
[1763131405245,0.01180035,96380.0,96371.0,0.5]
[1763131405534,0.00980035,96370.0,96352.0,0.09854]
[1763131405743,0.09239,96376.0,96353.0,0.00931684]
[1763131405946,0.20752485,96374.0,96354.0,0.00931684]
[1763131406156,0.20756792,96354.0,96320.0,0.45398575]
[1763131406370,0.10479654,96355.0,96324.0,0.20763251]
[1763131406570,0.10479654,96355.0,96325.0,0.02760328]
[1763131406781,0.01037882,96350.0,96326.0,0.00933029]
[1763131406973,0.01037882,96350.0,96327.0,0.00933029]
[1763131407300,0.10479654,96334.0,96328.0,0.00933029]
[1763131407438,0.10479654,96334.0,96329.0,0.00933029]
[1763131407621,0.10479654,96334.0,96327.0,0.00013608]
[1763131407622,0.01037882,96350.0,96327.0,0.00013608]
[1763131407816,0.10479654,96335.0,96327.0,0.00013608]
[1763131408738,0.20762363,96329.0,96327.0,0.00013608]
[1763131408921,0.10479654,96335.0,96327.0,0.00013608]
[1763131409296,0.01137882,96350.0,96327.0,0.00013608]
[1763131409297,0.002,96350.0,96327.0,0.00013608]
[1763131409496,0.10479654,96340.0,96328.0,0.20762395]
[1763131409697,0.10479654,96340.0,96327.0,0.00013608]
[1763131409927,0.0031908,96329.0,96328.0,0.20762395]
[1763131410146,0.0031908,96329.0,96328.0,0.53995424]
[1763131410350,0.0031908,96329.0,96328.0,0.63849424]
[1763131410550,0.0031908,96329.0,96328.0,0.63659424]
[1763131410977,0.0031908,96329.0,96328.0,0.42897029]
[1763131411406,0.0031908,96329.0,96328.0,0.00933029]
[1763131411558,0.0031908,96329.0,96327.0,0.00013608]
[1763131411756,0.10479654,96337.0,96328.0,0.00933029]
[1763131411979,0.20761024,96335.0,96327.0,0.00013608]
[1763131412144,0.10479654,96337.0,96327.0,0.00013608]
[1763131412345,0.20761795,96331.0,96328.0,0.00933029]
[1763131412547,0.20762395,96328.0,96327.0,0.00013608]
[1763131412759,0.20762144,96330.0,96327.0,0.00013608]
[1763131412760,0.20762299,96329.0,96327.0,0.00013608]
[1763131412961,0.20762299,96329.0,96300.0,0.01042421]
[1763131413161,0.10479654,96317.0,96301.0,0.00935563]
[1763131413406,0.10479654,96317.0,96300.0,0.00013613]
[1763131413648,0.10479654,96302.0,96300.0,0.00013613]
[1763131414001,0.10479654,96317.0,96300.0,0.00013613]
[1763131414759,0.0781,96316.0,96300.0,0.00013613]
[1763131414964,0.10579654,96302.0,96300.0,0.00013613]
[1763131415320,0.001,96302.0,96301.0,0.20768216]
[1763131415526,0.001,96302.0,96301.0,0.53068216]
[1763131415892,0.001,96302.0,96301.0,0.7391119]
[1763131416209,0.01022149,96347.0,96320.0,0.01038205]
[1763131416436,0.00999999,96380.0,96320.0,0.01038205]
[1763131416437,0.07151,96382.0,96330.0,0.46436673]
[1763131416667,0.01022149,96354.0,96340.0,0.45398575]
[1763131416896,0.01022149,96354.0,96331.0,0.09664]
[1763131417069,0.20755897,96359.0,96332.0,0.02076153]
[1763131417276,0.07151,96382.0,96340.0,0.45398575]
[1763131417499,0.00999999,96390.0,96351.0,0.20757422]
[1763131417500,0.01022149,96369.0,96351.0,0.20757422]
[1763131417714,0.01022149,96369.0,96340.0,0.46436565]
[1763131417715,0.00013595,96370.0,96368.0,0.20753676]
[1763131417911,0.00013595,96370.0,96369.0,0.323]
[1763131418121,0.00013595,96370.0,96369.0,0.34732]
[1763131418327,0.00013595,96370.0,96369.0,0.55485561]
[1763131418532,0.00013595,96370.0,96369.0,0.55485508]
[1763131419336,0.00013595,96370.0,96369.0,0.02432]
[1763131419535,0.00213595,96370.0,96369.0,0.23185561]
[1763131419742,0.00013595,96370.0,96369.0,0.23185561]
[1763131420185,0.00013595,96370.0,96369.0,0.02432]
[1763131420420,0.00013595,96370.0,96368.0,0.20753658]
[1763131420956,0.00013595,96370.0,96369.0,0.41964]
[1763131421382,0.00013595,96370.0,96369.0,0.62717561]
[1763131422034,0.00013595,96370.0,96369.0,0.53053561]
[1763131422723,0.00013595,96370.0,96369.0,0.323]
[1763131423157,0.00443359,96370.0,96368.0,0.001]
[1763131423377,0.00013595,96370.0,96362.0,0.09664]
[1763131423587,0.00013595,96370.0,96361.0,0.323]
[1763131423820,0.00013595,96370.0,96360.0,0.45398575]
[1763131424041,0.00013595,96370.0,96361.0,0.53055089]
[1763131424258,0.00013595,96370.0,96361.0,0.41964]
[1763131424484,0.00013595,96370.0,96369.0,0.53053561]
[1763131424913,0.00013595,96370.0,96369.0,0.74900861]
[1763131425544,0.00013595,96370.0,96369.0,0.65128761]
[1763131426116,0.00013595,96370.0,96369.0,0.68696861]
[1763131426330,0.01022149,96409.0,96370.0,0.33337667]
[1763131426677,0.00045361,96409.0,96399.0,0.45398575]
[1763131427093,0.00045361,96409.0,96408.0,0.02432]
[1763131427703,0.00145361,96409.0,96408.0,0.02432]
[1763131428322,0.00145361,96409.0,96408.0,0.34732]
[1763131428671,0.00145361,96409.0,96408.0,0.626173]
[1763131428947,0.00145361,96409.0,96408.0,0.50112974]
[1763131428948,0.00045361,96409.0,96408.0,0.50112974]
[1763131429079,0.00580321,96409.0,96408.0,0.65027388]
[1763131429285,0.00680321,96409.0,96408.0,0.57995074]
[1763131429488,0.00680321,96409.0,96408.0,0.98095074]
[1763131429684,0.00580321,96409.0,96408.0,0.98095074]
[1763131429947,0.00580321,96409.0,96408.0,0.98195074]
[1763131430148,0.00580321,96409.0,96408.0,1.08574728]
[1763131430502,0.00580321,96409.0,96408.0,1.08674728]
[1763131430761,0.0002,96440.0,96410.0,0.01037236]
[1763131430923,0.00033599,96440.0,96439.0,0.53038497]
[1763131431121,0.00033599,96440.0,96439.0,0.323]
[1763131431647,0.00033599,96440.0,96430.0,0.45398575]